Department family,Entity,Date,Expense type,Expense area,Supplier,Transaction number,Amount
Department of Health,University Hospitals of Morecambe Bay NHS Foundation Trust,07-Jun-22,Drugs,Pharmacy,Alliance Healthcare,100349126,"28,177.71"
Department of Health,University Hospitals of Morecambe Bay NHS Foundation Trust,07-Jun-22,Drugs,Pharmacy,Alloga UK Ltd,100349035,"51,208.95"
Department of Health,University Hospitals of Morecambe Bay NHS Foundation Trust,07-Jun-22,Patient Admin - Managed Service,Information Technology,DH OpCo UK Ltd,100348501,"51,729.32"
Department of Health,University Hospitals of Morecambe Bay NHS Foundation Trust,07-Jun-22,Drugs,Pharmacy,Lloyds Pharmacy Clinical Homecare,100349039,"30,195.65"
Department of Health,University Hospitals of Morecambe Bay NHS Foundation Trust,07-Jun-22,NHS Product Sales,Trust Wide,NHS Supply Chain,100348204,"71,944.82"
Department of Health,University Hospitals of Morecambe Bay NHS Foundation Trust,07-Jun-22,NHS Product Sales,Trust Wide,NHS Supply Chain,100348635,"315,207.43"
Department of Health,University Hospitals of Morecambe Bay NHS Foundation Trust,07-Jun-22,Bowel cancer Screening,Medicine,North Cumbria Integrated Care Nhs Foundation Trust,100349041,"39,178.00"
Department of Health,University Hospitals of Morecambe Bay NHS Foundation Trust,07-Jun-22,Payroll Services,Workforce,Northern Care Alliance Nhs Group (NCA),100349040,"35,770.00"
Department of Health,University Hospitals of Morecambe Bay NHS Foundation Trust,07-Jun-22,Agency Medical Staff - Management Costs,Trust Wide,Retinue Solutions Ltd,100347601,"58,929.56"
Department of Health,University Hospitals of Morecambe Bay NHS Foundation Trust,07-Jun-22,Agency Medical Staff - Management Costs,Trust Wide,Retinue Solutions Ltd,100348220,"64,805.41"
Department of Health,University Hospitals of Morecambe Bay NHS Foundation Trust,07-Jun-22,Drugs,Pharmacy,Sciensus Pharma Services Limited,100348510,"50,623.58"
Department of Health,University Hospitals of Morecambe Bay NHS Foundation Trust,07-Jun-22,Recharge Specialist Registrars,Trust Wide,St Helens & Knowsley Hospitals Nhs Trust,100349042,"620,000.00"
Department of Health,University Hospitals of Morecambe Bay NHS Foundation Trust,08-Jun-22,Drugs,Pharmacy,Bath Asu,100349047,"57,030.24"
Department of Health,University Hospitals of Morecambe Bay NHS Foundation Trust,08-Jun-22,Drugs,Pharmacy,Baxter Healthcare Ltd,100349184,"41,637.31"
Department of Health,University Hospitals of Morecambe Bay NHS Foundation Trust,08-Jun-22,Dictation Service,Medicine,DICT8 LTD,100349185,"35,299.05"
Department of Health,University Hospitals of Morecambe Bay NHS Foundation Trust,10-Jun-22,Drugs,Pharmacy,AAH Pharmaceuticals Ltd,100349311,"177,635.07"
Department of Health,University Hospitals of Morecambe Bay NHS Foundation Trust,10-Jun-22,Mobile MRI Scanner,Radiology,Alliance Medical Ltd,100349382,54103.62
Department of Health,University Hospitals of Morecambe Bay NHS Foundation Trust,10-Jun-22,Rates,Estates & Facilities,Borough Of Barrow-In-Furness,100349578,"58,027.00"
Department of Health,University Hospitals of Morecambe Bay NHS Foundation Trust,10-Jun-22,Rent & Service Charges,Corporate,HBP Enterprises Ltd,100349901,"38,634.60"
Department of Health,University Hospitals of Morecambe Bay NHS Foundation Trust,10-Jun-22,Rates,Estates & Facilities,Lancaster City Council,100349568,"50,773.00"
Department of Health,University Hospitals of Morecambe Bay NHS Foundation Trust,10-Jun-22,Drugs,Pharmacy,Lloyds Pharmacy Limited,100349665,"763,583.56"
Department of Health,University Hospitals of Morecambe Bay NHS Foundation Trust,10-Jun-22,Blood & Blood components contract,Core Clinical,NHS Blood and Transplant,100349908,"59,060.37"
Department of Health,University Hospitals of Morecambe Bay NHS Foundation Trust,10-Jun-22,Blood & Blood components contract,Core Clinical,NHS Blood and Transplant,100349909,"36,665.87"
Department of Health,University Hospitals of Morecambe Bay NHS Foundation Trust,10-Jun-22,NHS Product Sales,Trust Wide,NHS Supply Chain,100349697,"151,576.57"
Department of Health,University Hospitals of Morecambe Bay NHS Foundation Trust,10-Jun-22,Agency Medical Staff - Management Costs,Trust Wide,Retinue Solutions Ltd,100349706,"39,954.88"
Department of Health,University Hospitals of Morecambe Bay NHS Foundation Trust,10-Jun-22,Agency Medical Staff,Surgery,RMO International Heathcare LLP,100349218,"28,744.32"
Department of Health,University Hospitals of Morecambe Bay NHS Foundation Trust,10-Jun-22,Mobile Theatres,Theatres,Vanguard Healthcare Solutions Ltd,100349663,"53,967.20"
Department of Health,University Hospitals of Morecambe Bay NHS Foundation Trust,10-Jun-22,Mobile Theatres,Theatres,Vanguard Healthcare Solutions Ltd,100349716,"45,209.56"
Department of Health,University Hospitals of Morecambe Bay NHS Foundation Trust,10-Jun-22,Water Charges,Estates & Facilities,Water Plus,100349348,"26,624.19"
Department of Health,University Hospitals of Morecambe Bay NHS Foundation Trust,15-Jun-22,Drugs,Pharmacy,Baxter Healthcare Ltd,100350140,"62,343.87"
Department of Health,University Hospitals of Morecambe Bay NHS Foundation Trust,15-Jun-22,Drugs,Pharmacy,Biotest (UK) Ltd,100350141,"46,960.00"
Department of Health,University Hospitals of Morecambe Bay NHS Foundation Trust,15-Jun-22,Drugs,Pharmacy,Biotest (UK) Ltd,100350142,"41,090.00"
Department of Health,University Hospitals of Morecambe Bay NHS Foundation Trust,15-Jun-22,NHS Leadership Acadamey Support,Corporate,Blackpool Teaching Hospitals NHS Foundation Trust,100350184,"42,000.00"
Department of Health,University Hospitals of Morecambe Bay NHS Foundation Trust,15-Jun-22,Gas,Estates & Facilities,Corona Energy Retail 4 Ltd,100349907,"25,404.36"
Department of Health,University Hospitals of Morecambe Bay NHS Foundation Trust,15-Jun-22,Engineering Services,Capital Services,Dynamic FM Ltd,100349105,"38,128.42"
Department of Health,University Hospitals of Morecambe Bay NHS Foundation Trust,15-Jun-22,Laundry,Estates & Facilities,Elis Uk Ltd,100339128,"30,614.41"
Department of Health,University Hospitals of Morecambe Bay NHS Foundation Trust,15-Jun-22,Laundry,Estates & Facilities,Elis Uk Ltd,100343834,"35,308.48"
Department of Health,University Hospitals of Morecambe Bay NHS Foundation Trust,15-Jun-22,Laundry,Estates & Facilities,Elis Uk Ltd,100349553,"42,814.44"
Department of Health,University Hospitals of Morecambe Bay NHS Foundation Trust,15-Jun-22,Laundry,Estates & Facilities,Elis Uk Ltd,100349560,"32,411.06"
Department of Health,University Hospitals of Morecambe Bay NHS Foundation Trust,15-Jun-22,Building Services,Capital Services,GW Northwest Ltd,100346628,"45,456.22"
Department of Health,University Hospitals of Morecambe Bay NHS Foundation Trust,15-Jun-22,Electricity Charges,Estates & Facilities,NPower,100350479,"61,540.99"
Department of Health,University Hospitals of Morecambe Bay NHS Foundation Trust,15-Jun-22,Electricity Charges,Estates & Facilities,NPower,100350480,"43,160.68"
Department of Health,University Hospitals of Morecambe Bay NHS Foundation Trust,15-Jun-22,Agency Medical Staff - Management Costs,Trust Wide,Retinue Solutions Ltd,100350281,"46,172.87"
Department of Health,University Hospitals of Morecambe Bay NHS Foundation Trust,15-Jun-22,Software ,Information Technology,Sectra Limited,100345849,"31,298.35"
Department of Health,University Hospitals of Morecambe Bay NHS Foundation Trust,15-Jun-22,Software ,Information Technology,Sectra Limited,100350409,"31,298.35"
Department of Health,University Hospitals of Morecambe Bay NHS Foundation Trust,15-Jun-22,Recharge Specialist Registrars,Trust Wide,St Helens & Knowsley Hospitals Nhs Trust,100350552,"34,017.78"
Department of Health,University Hospitals of Morecambe Bay NHS Foundation Trust,15-Jun-22,Mobile Theatres,Theatres,Vanguard Healthcare Solutions Ltd,100338939,"43,154.58"
Department of Health,University Hospitals of Morecambe Bay NHS Foundation Trust,15-Jun-22,Mobile Theatres,Theatres,Vanguard Healthcare Solutions Ltd,100343754,"41,099.60"
Department of Health,University Hospitals of Morecambe Bay NHS Foundation Trust,17-Jun-22,Scans & Xray Reporting,Radiology,4Ways Healthcare,100350454,"39,055.00"
Department of Health,University Hospitals of Morecambe Bay NHS Foundation Trust,17-Jun-22,Scans & Xray Reporting,Radiology,4Ways Healthcare,100350456,"73,319.20"
Department of Health,University Hospitals of Morecambe Bay NHS Foundation Trust,17-Jun-22,Mobile MRI Scanner,Radiology,Alliance Medical Ltd,100340585,"60,346.34"
Department of Health,University Hospitals of Morecambe Bay NHS Foundation Trust,17-Jun-22,Drugs,Pharmacy,Baxter Healthcare Ltd,100351004,"38,508.41"
Department of Health,University Hospitals of Morecambe Bay NHS Foundation Trust,17-Jun-22,Drugs,Pharmacy,Healthnet Homecare (UK) Limited,100351051,"42,446.59"
Department of Health,University Hospitals of Morecambe Bay NHS Foundation Trust,17-Jun-22,Virgin Media Charges,Information Technology,Lancashire & South Cumbria NHS Trust,100348812,"27,277.05"
Department of Health,University Hospitals of Morecambe Bay NHS Foundation Trust,17-Jun-22,Diabetes Consumables,Medicine,Medtronic Ltd,100348667,"31,647.78"
Department of Health,University Hospitals of Morecambe Bay NHS Foundation Trust,17-Jun-22,Waste Services,Estates & Facilities,Mitie Waste & Environmental Services Ltd,100344860,"39,010.17"
Department of Health,University Hospitals of Morecambe Bay NHS Foundation Trust,17-Jun-22,Waste Services,Estates & Facilities,Mitie Waste & Environmental Services Ltd,100349776,"44,870.56"
Department of Health,University Hospitals of Morecambe Bay NHS Foundation Trust,17-Jun-22,NHS Product Sales,Trust Wide,NHS Supply Chain,100350700,"321,911.97"
Department of Health,University Hospitals of Morecambe Bay NHS Foundation Trust,17-Jun-22,Agency Medical Staff,Surgery,RMO International Heathcare LLP,100343937,"28,744.32"
Department of Health,University Hospitals of Morecambe Bay NHS Foundation Trust,17-Jun-22,Drugs,Pharmacy,Roche Products Limited,100351015,"28,749.46"
Department of Health,University Hospitals of Morecambe Bay NHS Foundation Trust,17-Jun-22,Drugs,Pharmacy,Sciensus Pharma Services Limited,100351081,"31,129.93"
Department of Health,University Hospitals of Morecambe Bay NHS Foundation Trust,17-Jun-22,Drugs,Pharmacy,Sciensus Pharma Services Limited,100351107,"26,888.77"
Department of Health,University Hospitals of Morecambe Bay NHS Foundation Trust,17-Jun-22,Drugs,Pharmacy,Sciensus Pharma Services Limited,100351132,"31,689.71"
Department of Health,University Hospitals of Morecambe Bay NHS Foundation Trust,22-Jun-22,Transport Services,Estates & Facilities,BFW Management Ltd t/a Atlas,100350268,"42,109.20"
Department of Health,University Hospitals of Morecambe Bay NHS Foundation Trust,22-Jun-22,Transport Services,Estates & Facilities,BFW Management Ltd t/a Atlas,100350270,"42,109.20"
Department of Health,University Hospitals of Morecambe Bay NHS Foundation Trust,22-Jun-22,Transport Services,Estates & Facilities,BFW Management Ltd t/a Atlas,100350271,"42,109.20"
Department of Health,University Hospitals of Morecambe Bay NHS Foundation Trust,22-Jun-22,Waiting List (Additional Capacity),Surgery,BMI Healthcare Ltd,100343028,"102,293.36"
Department of Health,University Hospitals of Morecambe Bay NHS Foundation Trust,22-Jun-22,Waiting List (Additional Capacity),Surgery,BMI Healthcare Ltd,100347252,"46,319.91"
Department of Health,University Hospitals of Morecambe Bay NHS Foundation Trust,22-Jun-22,Software ,Information Technology,NDL Software Limited,100340970,"31,549.20"
Department of Health,University Hospitals of Morecambe Bay NHS Foundation Trust,22-Jun-22,NHS Product Sales,Trust Wide,NHS Supply Chain,100351756,"254,665.69"
Department of Health,University Hospitals of Morecambe Bay NHS Foundation Trust,22-Jun-22,"Agency Nurses, Midwives & ODPs",Trust Wide,Retinue Solutions Ltd,100349708,"51,573.63"
Department of Health,University Hospitals of Morecambe Bay NHS Foundation Trust,22-Jun-22,"Agency Nurses, Midwives & ODPs",Trust Wide,Retinue Solutions Ltd,100350284,"47,264.14"
Department of Health,University Hospitals of Morecambe Bay NHS Foundation Trust,22-Jun-22,Agency Medical Staff - Management Costs,Trust Wide,Retinue Solutions Ltd,100351086,"23,836.40"
Department of Health,University Hospitals of Morecambe Bay NHS Foundation Trust,22-Jun-22,"Agency Nurses, Midwives & ODPs",Trust Wide,Retinue Solutions Ltd,100351463,"34,796.44"
Department of Health,University Hospitals of Morecambe Bay NHS Foundation Trust,22-Jun-22,Drugs,Pharmacy,Sciensus Pharma Services Limited,100351457,"35,986.62"
Department of Health,University Hospitals of Morecambe Bay NHS Foundation Trust,24-Jun-22,Drugs,Pharmacy,Baxter Healthcare Ltd,100351824,"28,991.87"
Department of Health,University Hospitals of Morecambe Bay NHS Foundation Trust,24-Jun-22,Drugs,Pharmacy,Baxter Healthcare Ltd,100351830,"64,537.57"
Department of Health,University Hospitals of Morecambe Bay NHS Foundation Trust,24-Jun-22,Gas,Estates & Facilities,Gazprom Retail Ltd,100351904,"47,057.40"
Department of Health,University Hospitals of Morecambe Bay NHS Foundation Trust,24-Jun-22,Drugs,Pharmacy,Healthnet Homecare (UK) Limited,100351896,"25,564.84"
Department of Health,University Hospitals of Morecambe Bay NHS Foundation Trust,24-Jun-22,Drugs,Pharmacy,Janssen-Cilag Ltd,100351930,"28,615.68"
Department of Health,University Hospitals of Morecambe Bay NHS Foundation Trust,24-Jun-22,Drugs,Pharmacy,Lloyds Pharmacy Clinical Homecare,100351895,"46,457.79"
Department of Health,University Hospitals of Morecambe Bay NHS Foundation Trust,24-Jun-22,CNST Premium,Corporate,NHS Resolution,100350983,"1,131,004.20"
Department of Health,University Hospitals of Morecambe Bay NHS Foundation Trust,24-Jun-22,Drugs,Pharmacy,Roche Products Limited,100352045,"43,141.43"
Department of Health,University Hospitals of Morecambe Bay NHS Foundation Trust,29-Jun-22,Drugs,Pharmacy,Bath Asu,100352551,"42,251.76"
Department of Health,University Hospitals of Morecambe Bay NHS Foundation Trust,29-Jun-22,Drugs,Pharmacy,Bath Asu,100352553,"42,251.76"
Department of Health,University Hospitals of Morecambe Bay NHS Foundation Trust,29-Jun-22,Managed Service Contract,Corporate,Carveti Partnership Ltd,100338863,"25,056.00"
Department of Health,University Hospitals of Morecambe Bay NHS Foundation Trust,29-Jun-22,Managed Service Contract,Corporate,Carveti Partnership Ltd,100338877,"50,072.67"
Department of Health,University Hospitals of Morecambe Bay NHS Foundation Trust,29-Jun-22,Managed Service Contract,Corporate,Carveti Partnership Ltd,100349207,"25,056.00"
Department of Health,University Hospitals of Morecambe Bay NHS Foundation Trust,29-Jun-22,Managed Service Contract,Corporate,Carveti Partnership Ltd,100351098,"50,072.67"
Department of Health,University Hospitals of Morecambe Bay NHS Foundation Trust,29-Jun-22,Support to Diabetes Service,Medicine,Cumbria County Council,100351002,"39,500.00"
Department of Health,University Hospitals of Morecambe Bay NHS Foundation Trust,29-Jun-22,Gas,Estates & Facilities,Gazprom Retail Ltd,100352734,"50,689.17"
Department of Health,University Hospitals of Morecambe Bay NHS Foundation Trust,29-Jun-22,FP10 Prescriptions,Pharmacy,NHS Business Services Authority,100352754,"48,658.80"
Department of Health,University Hospitals of Morecambe Bay NHS Foundation Trust,29-Jun-22,Agency Medical Staff - Management Costs,Trust Wide,Retinue Solutions Ltd,100351462,"76,433.02"
Department of Health,University Hospitals of Morecambe Bay NHS Foundation Trust,29-Jun-22,Agency Medical Staff - Management Costs,Trust Wide,Retinue Solutions Ltd,100352529,"47,342.11"
Department of Health,University Hospitals of Morecambe Bay NHS Foundation Trust,29-Jun-22,"Agency Nurses, Midwives & ODPs",Trust Wide,Retinue Solutions Ltd,100352532,"42,145.98"
Department of Health,University Hospitals of Morecambe Bay NHS Foundation Trust,30-Jun-22,Drugs,Pharmacy,Baxter Healthcare Ltd,100353238,"53,297.17"
Department of Health,University Hospitals of Morecambe Bay NHS Foundation Trust,30-Jun-22,Drugs,Pharmacy,Bayer PLC,100353217,"35,585.78"
Department of Health,University Hospitals of Morecambe Bay NHS Foundation Trust,30-Jun-22,Drugs,Pharmacy,Bayer PLC,100353231,"32,848.42"
Department of Health,University Hospitals of Morecambe Bay NHS Foundation Trust,30-Jun-22,Drugs,Pharmacy,Bayer PLC,100353233,"32,848.42"
Department of Health,University Hospitals of Morecambe Bay NHS Foundation Trust,30-Jun-22,Drugs,Pharmacy,Biotest (UK) Ltd,100353125,"41,090.00"
Department of Health,University Hospitals of Morecambe Bay NHS Foundation Trust,30-Jun-22,Drugs,Pharmacy,Biotest (UK) Ltd,100353148,"41,090.00"
Department of Health,University Hospitals of Morecambe Bay NHS Foundation Trust,30-Jun-22,Drugs,Pharmacy,Biotest (UK) Ltd,100353201,"38,155.00"
Department of Health,University Hospitals of Morecambe Bay NHS Foundation Trust,30-Jun-22,Gas,Estates & Facilities,Corona Energy Retail 4 Ltd,100352912,"48,223.70"
Department of Health,University Hospitals of Morecambe Bay NHS Foundation Trust,30-Jun-22,Maintenance Contract,Endoscopy,NHS Supply Chain,100352797,"192,798.05"
Department of Health,University Hospitals of Morecambe Bay NHS Foundation Trust,30-Jun-22,Drugs,Pharmacy,Sciensus Pharma Services Limited,100353061,"31,347.44"
Department of Health,University Hospitals of Morecambe Bay NHS Foundation Trust,30-Jun-22,Drugs,Pharmacy,Sciensus Pharma Services Limited,100353062,"27,801.27"
Department of Health,University Hospitals of Morecambe Bay NHS Foundation Trust,30-Jun-22,Drugs,Pharmacy,Sciensus Pharma Services Limited,100353065,"31,704.89"
Department of Health,University Hospitals of Morecambe Bay NHS Foundation Trust,30-Jun-22,Drugs,Pharmacy,Sciensus Pharma Services Limited,100353067,"29,811.55"
